[Event "87th Spanish Championship 2022"]
[Site "Linares"]
[Date "2022.08.12"]
[Round "2.23"]
[White "Del Carmen Hernandez, Aimer"]
[Black "Alonso Garcia, Aaron"]
[Result "0-1"]
[ECO "C03"]
[WhiteElo "2066"]
[BlackElo "2374"]
[Annotator "TA"]
[PlyCount "66"]
[EventDate "2022.08.11"]
[EventType "swiss"]
[EventCountry "ESP"]
[SourceTitle "playchess.com"]
[Source "ChessBase"]
[SourceQuality "1"]
[TimeControl "5400+30"]

{[%evp 9,66,6,5,21,15,0,8,0,0,-5,4,0,19,-20,0,-96,-93,-98,-105,-123,-120,-135,-141,-294,-104,-101,-100,-148,-171,-162,-162,-148,-144,-150,-139,-176,-172,-186,-150,-179,-154,-187,-195,-247,-255,-380,-370,-614,-596,-527,-462,-954,-790,-776,-729,-1263,-1092,-1037,-1010]} 1. e4 {[%emt 0:00:05]} e6 {[%emt 0:07:19]} 2. d4 {[%emt 0:00:20]} d5 {[%emt 0:00:04]} 3. Nd2 {[%emt 0:00:05]} Be7 {[%emt 0:00:04]} 4. e5 {[%emt 0:00:44]} c5 {[%emt 0:00:02]} 5. c3 {[%emt 0:01:40]} cxd4 {[%emt 0:00:19]} 6. cxd4 {[%emt 0:00:05] C03: French Tarrasch: Unusual Black 3rd moves.} Qb6 {[%emt 0:00:06] 6...Qb6 is better than 6...Nc6.} 7. Ndf3 {[%emt 0:08:52]} Bb4+ {[%emt 0:00:01]} 8. Bd2 {[%emt 0:00:17] The position is equal.} Nc6 {[%emt 0:00:01]} 9. Bc3 {[%emt 0:32:36]} Bd7 {[%emt 0:02:14]} 10. Qd2 {[%emt 0:13:11]} f6 {[%emt 0:07:22] [#]} 11. Ne2 $146 {[%emt 0:04:09]} ({Predecessor:} 11. Bd3 Bxc3 12. bxc3 Qc7 13. exf6 gxf6 14. c4 dxc4 15. Bxc4 Qa5 16. Ne2 Qxd2+ 17. Nxd2 {½-½ (51) Kovalev,V (2703)-Antipov,M (2589) Moscow 2019}) 11... Nge7 {[%emt 0:09:16]} 12. a3 {[%emt 0:06:09]} (12. exf6 $11 {keeps the balance.} gxf6 13. Nf4) 12... Bxc3 $17 {[%emt 0:01:39]} 13. Nxc3 {[%emt 0:00:06]} fxe5 {[%emt 0:02:26]} 14. dxe5 {[%emt 0:01:11]} Ng6 $1 {[%emt 0:01:26]} 15. O-O-O {[%emt 0:06:04]} O-O {[%emt 0:03:42]} ({And not} 15... Ncxe5 16. Nxe5 Nxe5 17. Qe2 $15) 16. Re1 $2 {[%emt 0:15:33] [#]} (16. Qe3 $17) 16... Na5 $2 {[%emt 0:10:53]} (16... Rxf3 $1 $19 {[%mdl 512] is more deadly.} 17. gxf3 Nd4) 17. Kb1 {[%emt 0:01:13]} Nb3 {[%emt 0:01:05]} 18. Qc2 {[%emt 0:00:11]} ({Better is} 18. Qe3) 18... Rac8 {[%emt 0:01:41] Hoping for ...d4. Black is more active.} 19. Ka2 {[%emt 0:04:07]} Nd4 $36 {[%emt 0:00:13][%mdl 2048] Black is in control.} 20. Nxd4 {[%emt 0:00:26]} Qxd4 {[%emt 0:00:03]} 21. f3 {[%emt 0:02:40]} Nxe5 {[%emt 0:00:02]} 22. Qd1 {[%emt 0:00:53]} Qf4 {[%emt 0:03:05]} 23. Bd3 {[%emt 0:00:34]} ({But not} 23. Nxd5 exd5 24. Qxd5+ Qf7 25. Qxf7+ (25. Rxe5 $2 Qxd5+ 26. Rxd5 Be6 $19) 25... Nxf7) 23... Qf6 {[%emt 0:06:14]} 24. Bc2 {[%emt 0:00:26]} Be8 {[%emt 0:04:54]} 25. Bb3 {[%emt 0:00:17]} Bf7 {[%emt 0:00:22]} 26. Nb5 {[%emt 0:00:26]} (26. Qd4 $142 Nc6 27. Qxf6 gxf6 28. Rc1) 26... Rfd8 $19 {[%emt 0:06:05]} 27. Qe2 {[%emt 0:00:59]} (27. Qd4 $142 Nc6 28. Qxf6 gxf6 29. Kb1) 27... Nc6 {[%emt 0:00:49]} 28. g4 $2 {[%emt 0:00:29]} (28. f4) 28... a6 {[%emt 0:00:09] Black is clearly winning.} 29. Nc3 {[%emt 0:00:12]} Nd4 {[%emt 0:00:01]} 30. Qd1 {[%emt 0:00:17]} (30. Qe5 $142 Qxe5 31. Rxe5) 30... e5 {[%emt 0:00:20]} 31. g5 {[%emt 0:00:57]} Qd6 {[%emt 0:00:17]} 32. Ka1 {[%emt 0:00:42]} Nxb3+ {[%emt 0:00:20]} 33. Qxb3 {[%emt 0:00:05]} d4 {[%emt 0:00:05][%csl LRb3,LRc3] Weighted Error Value: White=0.69/Black=0.25 (precise)} 0-1

[Event "87th Spanish Championship 2022"]
[Site "Linares"]
[Date "2022.08.12"]
[Round "2.24"]
[White "Ingunza Curro, Andres"]
[Black "Horcajuelo Rocamora, Martin"]
[Result "1/2-1/2"]
[ECO "B92"]
[WhiteElo "2370"]
[BlackElo "2107"]
[Annotator "TA"]
[PlyCount "72"]
[EventDate "2022.08.11"]
[EventType "swiss"]
[EventCountry "ESP"]
[SourceTitle "playchess.com"]
[Source "ChessBase"]
[SourceQuality "1"]
[TimeControl "5400+30"]

{[%evp 19,72,5,10,0,35,41,33,26,58,47,61,54,64,66,77,87,80,58,70,57,82,81,79,79,107,108,108,100,107,53,59,60,65,28,30,29,36,-14,-20,-98,0,-2,-16,-27,29,28,31,28,22,22,44,54,57,50,44]} 1. e4 {[%emt 0:00:04]} c5 {[%emt 0:00:10]} 2. Nf3 {[%emt 0:00:31]} d6 {[%emt 0:00:21]} 3. d4 {[%emt 0:00:48]} cxd4 {[%emt 0:00:08]} 4. Nxd4 {[%emt 0:00:06]} Nf6 {[%emt 0:00:08]} 5. Nc3 {[%emt 0:00:06]} a6 {[%emt 0:00:04]} 6. Be2 {[%emt 0:00:49]} e5 {[%emt 0:00:53]} 7. Nf3 {[%emt 0:00:12]} Be7 {[%emt 0:02:23]} 8. Bg5 {[%emt 0:00:47]} Be6 {[%emt 0:00:56]} 9. Bxf6 {[%emt 0:00:09]} Bxf6 {[%emt 0:00:07]} 10. O-O {[%emt 0:00:03]} O-O {[%emt 0:06:21]} 11. Nd5 {[%emt 0:00:23] B92: Sicilian Najdorf: 6 Be2.} Bxd5 {[%emt 0:02:16]} 12. Qxd5 {[%emt 0:00:17]} ({Much weaker is} 12. exd5 Nd7 $11) 12... Qc7 {[%emt 0:00:51]} 13. c3 {[%emt 0:01:49]} Nc6 {[%emt 0:01:04]} 14. Rfd1 {[%emt 0:04:27]} Rfd8 {[%emt 0:01:44]} 15. a4 {[%emt 0:02:14]} Ne7 {[%emt 0:02:39]} 16. Qb3 {[%emt 0:01:12] White is more active.} Rac8 {[%emt 0:03:49]} 17. Nd2 {[%emt 0:27:00][%cal Bf3d2,Bd2f1,Bf1h2,Bh2g4][%mdl 32]} Qc6 {[%emt 0:16:02]} 18. Bf3 {[%emt 0:06:09]} Bg5 {[%emt 0:02:30] [#]} 19. a5 $146 {[%emt 0:04:01]} ({Predecessor:} 19. Nb1 Rc7 20. a5 Qc4 21. Qc2 d5 22. Na3 Qc5 23. exd5 Nxd5 24. Qf5 Bf6 25. Be4 {1-0 (38) Della Morte,P (2286)-Encinas Varela,D (1885) Las Vegas 2018}) 19... Ng6 {[%emt 0:10:12][%cal Be7g6,Bg6f8,Bf8e6,Be6c5,Bc5b3][%mdl 32]} 20. g3 {[%emt 0:06:15]} Nf8 {[%emt 0:03:24]} 21. Nf1 {[%emt 0:04:29]} Ne6 {[%emt 0:03:15]} 22. h4 {[%emt 0:00:25]} Bh6 {[%emt 0:05:26] [#]} 23. Nh2 $1 {[%emt 0:02:52]} Nc5 {[%emt 0:01:37][%csl LRb3,LRe4]} 24. Qd5 {[%emt 0:02:32]} (24. Qc2 $16) 24... Qxd5 $14 {[%emt 0:02:14]} 25. Rxd5 {[%emt 0:01:38]} Kf8 {[%emt 0:00:08]} 26. Rad1 {[%emt 0:03:13]} Ke7 {[%emt 0:00:40]} 27. Ng4 {[%emt 0:03:08]} Nb3 $1 {[%emt 0:00:59] Against Ra1} 28. Bg2 {[%emt 0:10:14]} ({Better is} 28. Be2 $14) 28... Bc1 $11 {[%emt 0:04:24]} 29. Bh3 {[%emt 0:01:39] [#]} (29. h5 $11) 29... Rb8 {[%emt 0:01:20]} (29... Bxb2 $2 30. Rb1 $18) (29... Rc5 $1 $17) 30. Bf1 {[%emt 0:02:24][%cal Bh3f1,Bf1d3,Bd3c2][%mdl 32]} h5 {[%emt 0:02:53]} (30... Bxb2 $2 31. Rb1 $18) 31. Nh2 {[%emt 0:03:19] Hoping for Bc4.} Rbc8 {[%emt 0:00:30] Against Bc4} (31... Bxb2 $2 32. Rb1 $18) (31... b5 $142) 32. Bd3 $36 {[%emt 0:00:26][%mdl 2048] Bc2 is the strong threat. White fights for an advantage.} ({Reject} 32. Bh3 Rc5 $17) 32... Bh6 {[%emt 0:01:32]} ({Weaker is} 32... Bxb2 33. Rb1 $16) 33. Bc2 {[%emt 0:00:16]} Nc5 {[%emt 0:00:42]} 34. Nf3 {[%emt 0:04:55]} f6 {[%emt 0:00:07]} 35. Ne1 {[%emt 0:00:48]} Rc6 {[%emt 0:00:35]} 36. Nd3 {[%emt 0:01:58]} Nxd3 {[%emt 0:00:32] Weighted Error Value: White=0.12 (very precise) /Black=0.16 (very precise)} 1/2-1/2

[Event "87th Spanish Championship 2022"]
[Site "Linares"]
[Date "2022.08.12"]
[Round "2.25"]
[White "Vega Gutierrez, Sabrina"]
[Black "Zhou, Lulu"]
[Result "1-0"]
[ECO "C99"]
[WhiteElo "2366"]
[BlackElo "2115"]
[Annotator "TA"]
[PlyCount "123"]
[EventDate "2022.08.11"]
[EventType "swiss"]
[EventCountry "ESP"]
[SourceTitle "playchess.com"]
[Source "ChessBase"]
[SourceQuality "1"]
[TimeControl "5400+30"]

{[%evp 26,123,23,23,58,64,79,68,110,74,126,86,153,159,178,180,172,173,167,168,163,162,195,191,227,222,250,249,274,272,285,264,280,285,250,239,392,220,363,362,379,388,364,261,237,169,175,175,182,167,187,197,193,181,160,147,145,98,106,83,95,91,150,158,234,227,300,264,252,233,218,0,0,0,187,52,53,56,69,68,97,60,226,208,291,293,291,279,362,358,337,289,612,612,29970,725,980,951,29996,29997]} 1. e4 {[%emt 0:00:04]} e5 {[%emt 0:00:05]} 2. Nf3 {[%emt 0:00:06]} Nc6 {[%emt 0:00:04]} 3. Bb5 {[%emt 0:00:06]} a6 {[%emt 0:00:04]} 4. Ba4 {[%emt 0:00:10]} Nf6 {[%emt 0:00:10]} 5. O-O {[%emt 0:00:13]} Be7 {[%emt 0:00:32]} 6. Re1 {[%emt 0:00:38]} b5 {[%emt 0:00:07]} 7. Bb3 {[%emt 0:00:07]} d6 {[%emt 0:00:04]} 8. c3 {[%emt 0:00:14]} O-O {[%emt 0:00:07]} 9. h3 {[%emt 0:00:13]} Na5 {[%emt 0:00:07]} 10. Bc2 {[%emt 0:00:07]} c5 {[%emt 0:00:05]} 11. d4 {[%emt 0:00:40]} Qc7 {[%emt 0:00:06]} 12. Nbd2 {[%emt 0:00:24]} cxd4 {[%emt 0:00:13]} 13. cxd4 {[%emt 0:00:07]} Nc6 {[%emt 0:00:11]} 14. a3 {[%emt 0:00:27][%cal Ba2a3,Ba3a4][%mdl 32]} Re8 {[%emt 0:05:58] C99: Closed Ruy Lopez: Chigorin Defence: 11 d4 Qc7 12 Nbd2 cxd4.} 15. d5 {[%emt 0:00:52]} Nb8 {[%emt 0:01:07] [#]} (15... Nd4 16. Nxd4 exd4 17. Nf3 $16) 16. a4 $146 {[%emt 0:12:16]} ({Predecessor:} 16. Nf1 Nbd7 17. Be3 a5 18. Ng3 Nf8 19. Qd2 Ng6 20. Rec1 Qb7 21. Bd3 Bd7 22. Rc2 {1-0 (90) Pisarevic,G (2165)-Mitrovic,J (2177) Sarajevo 2017}) 16... b4 {[%emt 0:00:52] White is slightly better.} 17. a5 {[%emt 0:00:50]} Nbd7 {[%emt 0:00:14]} (17... Bd7 $142) 18. Ba4 {[%emt 0:09:38]} Rf8 {[%emt 0:18:29]} ({Black should play} 18... Qxa5 19. Nb3 Qc7) 19. Nb3 $1 $16 {[%emt 0:00:53]} Nc5 {[%emt 0:00:55]} 20. Nxc5 {[%emt 0:04:23]} dxc5 {[%emt 0:01:22]} 21. Nd2 {[%emt 0:20:31][%cal Bf3d2,Bd2c4,Bc4b6][%mdl 32]} Bd7 {[%emt 0:12:07]} 22. Nc4 {[%emt 0:00:57] d6 is the strong threat.} Bxa4 {[%emt 0:00:19]} 23. Qxa4 {[%emt 0:00:50]} (23. Rxa4 Ne8 $16) 23... Ne8 {[%emt 0:16:22]} 24. Be3 {[%emt 0:08:12]} f5 {[%emt 0:17:38]} 25. exf5 {[%emt 0:01:14]} Nd6 {[%emt 0:02:46]} 26. Nb6 {[%emt 0:02:58]} (26. Nxe5 $6 Nxf5 27. Nd7 Rf7) 26... Rad8 {[%emt 0:03:13]} 27. Qc6 {[%emt 0:00:44]} Nb5 {[%emt 0:03:28]} 28. Rac1 {[%emt 0:00:44]} Rxf5 {[%emt 0:01:23]} 29. Bxc5 {[%emt 0:04:26]} Bxc5 {[%emt 0:01:53]} 30. Qxc5 {[%emt 0:03:35]} (30. Rxc5 Qf7 31. d6 Nxd6) 30... Qf7 {[%emt 0:01:06]} (30... Qxc5 {might work better.} 31. Rxc5 Nd6) 31. Re4 {[%emt 0:05:00]} (31. Nc8 $142 {Black must now prevent Ne7+.} Kh8 32. Ne7 (32. Qxb4 Rf4 $16)) 31... Rf8 {[%emt 0:01:10]} (31... h6 $142 32. f3 (32. Qxb4 Rxf2 33. Rxe5 Rf8 $18) (32. Rxb4 Rf8 $18) 32... Rg5) 32. d6 $18 {[%emt 0:07:39][%cal Bd5d6,Bd6d7][%mdl 32]} (32. Rxb4 Rxf2 33. d6 Nd4 34. Rxd4 Rxg2+ 35. Kxg2 Qf3+ 36. Kg1 Qe3+ 37. Kh1 Qf3+ 38. Kh2 Qe2+ 39. Kh1 Qf3+ 40. Kh2 Qe2+ 41. Kh1 Qf3+ $11) 32... Rxf2 {[%emt 0:03:42][%cal Ob5d6]} 33. d7 {[%emt 0:00:10]} Nd6 {[%emt 0:00:18]} (33... Rxb2 $2 34. Qxf8+ $3 {[%mdl 512]} Qxf8 35. Rc8 $18) 34. Rg4 {[%emt 0:02:01] Active counter play!} h5 {[%emt 0:01:53]} 35. Rg3 {[%emt 0:06:22]} ({Worse is} 35. Qxd6 hxg4 36. Qd5 (36. d8=Q {leads to mate.} Rf1+ 37. Rxf1 Qxf1+ 38. Kh2 g3+ 39. Kxg3 Qf4#) 36... Qxd5 37. Nxd5 R2f7 $17) 35... Ne4 {[%emt 0:00:47] [#]} 36. Qxf8+ {[%emt 0:00:28][%mdl 512]} Qxf8 {[%emt 0:00:02]} 37. Rd3 $1 {[%emt 0:03:26] The board is on fire.} Qd8 {[%emt 0:07:24] And now ...Kh7 would win.} 38. Rc8 {[%emt 0:01:04]} Rf8 {[%emt 0:00:09][%cal Og8f7]} 39. Rxd8 {[%emt 0:02:46]} Rxd8 {[%emt 0:00:01][%mdl 4096] Endgame KRN-KRN} 40. Nc4 {[%emt 0:01:29]} Kf7 {[%emt 0:02:18]} 41. Re3 {[%emt 0:03:21]} ({Better is} 41. Rd5) 41... Nc5 $16 {[%emt 0:01:17]} 42. Rxe5 {[%emt 0:00:34]} (42. Nxe5+ {keeps more tension.} Kf6 43. Kh2 Nb7 44. g4) 42... Nxd7 {[%emt 0:00:13]} 43. Rxh5 {[%emt 0:00:09]} Nf6 {[%emt 0:00:27] [#] Inhibits Rd5.} (43... Rc8 $142 44. Rd5 Ke6 45. Rxd7 Rxc4 46. Rxg7 Rc2) 44. Rc5 $1 {[%emt 0:00:12]} Rd1+ {[%emt 0:00:27]} (44... Ke6 $16 45. Kf1 Rd3 46. Re5+ Kf7) 45. Kh2 $18 {[%emt 0:00:02]} Rd5 {[%emt 0:01:00]} 46. Rc7+ {[%emt 0:00:29]} Kg8 {[%emt 0:00:23]} 47. Rc6 {[%emt 0:00:12]} Rd4 {[%emt 0:00:39]} 48. Kg3 $2 {[%emt 0:01:32]} (48. b3 $18) 48... Ne4+ $1 $11 {[%emt 0:00:04]} 49. Kh2 {[%emt 0:00:13]} Nd2 $2 {[%emt 0:00:30]} (49... Nf6 $1 $11 {and Black has nothing to worry.}) 50. Ne3 {[%emt 0:00:12]} ({White must play} 50. Nd6 $18) 50... Rd3 $14 {[%emt 0:00:46]} 51. Nf5 {[%emt 0:00:02]} Rb3 {[%emt 0:00:12]} 52. Rc2 {[%emt 0:01:56]} Rd3 {[%emt 0:00:59]} 53. Rc7 {[%emt 0:00:18]} g6 $2 {[%emt 0:00:12] Black cannot hold the game after this.} (53... Rb3 $14) 54. Ne7+ $18 {[%emt 0:00:08]} Kg7 {[%emt 0:00:17]} 55. Nd5+ {[%emt 0:00:29]} Kh6 {[%emt 0:00:13]} 56. Nxb4 {[%emt 0:00:07]} Rb3 {[%emt 0:00:38]} 57. Nxa6 {[%emt 0:00:03]} Rxb2 {[%emt 0:00:03]} 58. Nc5 {[%emt 0:01:12] Hoping for a6.} Rb5 $2 {[%emt 0:00:43]} (58... Nf1+ 59. Kh1 Ng3+ 60. Kg1 Rc2) 59. a6 {[%emt 0:00:11]} Nb3 {[%emt 0:00:09]} 60. Ne4 {[%emt 0:00:53]} (60. a7 $142 Ra5 61. Nxb3 Ra3 62. Nd2 Kg5 63. Nc4 Ra6 {[#]} 64. Nb6 $1 {[%mdl 512]} Kh6 65. a8=Q) 60... Ra5 {[%emt 0:00:23]} 61. h4 {[%emt 0:00:44] Ng5 would kill now.} Rxa6 {[%emt 0:00:54]} 62. Ng5 {[%emt 0:00:14] Weighted Error Value: White=0.23 (precise) /Black=0.69} 1-0

[Event "87th Spanish Championship 2022"]
[Site "Linares"]
[Date "2022.08.12"]
[Round "2.26"]
[White "Romero Nieto, Hugo"]
[Black "Macias Pino, Diego"]
[Result "0-1"]
[ECO "B10"]
[WhiteElo "1712"]
[BlackElo "2355"]
[Annotator "TA"]
[PlyCount "72"]
[EventDate "2022.08.11"]
[EventType "swiss"]
[EventCountry "ESP"]
[SourceTitle "playchess.com"]
[Source "ChessBase"]
[SourceQuality "1"]
[TimeControl "5400+30"]

{[%evp 9,72,0,0,0,6,-5,14,-6,9,12,18,-12,50,-6,81,79,74,0,0,0,0,0,0,0,0,0,0,0,0,-31,-15,-20,-10,-14,-12,-17,-25,-25,-17,-50,-53,-103,-107,-168,-91,-259,-249,-418,-394,-406,-400,-409,-371,-420,-356,-529,-522,-520,-509,-513,-507,-684,-544,-655,-680]} 1. e4 {[%emt 0:00:16]} c6 {[%emt 0:00:10]} 2. Nc3 {[%emt 0:00:16]} d5 {[%emt 0:00:08]} 3. Nf3 {[%emt 0:00:06]} Nf6 {[%emt 0:00:46]} 4. e5 {[%emt 0:01:20]} Ne4 {[%emt 0:00:05]} 5. d4 {[%emt 0:00:40]} Nxc3 {[%emt 0:02:15]} 6. bxc3 {[%emt 0:00:09] B11: Caro-Kann: Two Knights Variation.} c5 7. c4 {[%emt 0:18:48]} e6 {[%emt 0:03:20] [#]} 8. Be2 $146 {[%emt 0:04:36] The position is equal.} ({Predecessor:} 8. c3 Nc6 9. Be2 cxd4 10. cxd4 Be7 11. O-O O-O 12. Be3 b6 13. Rc1 dxc4 14. Bxc4 {0-1 (39) Petr,M (2516)-Navara,D (2751) Havlickuv Brod 2015}) 8... cxd4 {[%emt 0:01:49]} 9. O-O {[%emt 0:01:55]} dxc4 {[%emt 0:02:30]} 10. Qxd4 {[%emt 0:00:43]} Qc7 {[%emt 0:05:36]} (10... Qxd4 $11 11. Nxd4 a6) 11. Qxc4 {[%emt 0:03:06]} (11. Rd1 $14) 11... Nc6 {[%emt 0:00:10]} (11... Qxc4 $11 12. Bxc4 Be7) 12. Nd4 $16 {[%emt 0:12:14]} Bd7 {[%emt 0:00:42]} (12... Qxe5 $2 {[#]} 13. Nxc6 $1 Qc7 14. Nd4 Qxc4 15. Bxc4 $18) 13. Bf4 {[%emt 0:06:20]} ({White should play} 13. Nb5 $16 Qa5 14. Rd1) 13... a6 $1 $11 14. Rfd1 {[%emt 0:06:01]} Rc8 {[%emt 0:03:22]} 15. Nf3 {[%emt 0:01:19]} Nb4 {[%emt 0:00:37]} 16. Qxc7 {[%emt 0:01:48]} Rxc7 {[%emt 0:00:01]} 17. c4 {[%emt 0:00:27]} Ba4 {[%emt 0:02:22]} 18. Rd2 {[%emt 0:00:57]} Nc6 {[%emt 0:01:21]} 19. Bd1 {[%emt 0:02:22]} Bxd1 {[%emt 0:00:30]} 20. Raxd1 {[%emt 0:00:14]} Bc5 {[%emt 0:02:02]} 21. Ng5 {[%emt 0:02:19]} Bb4 {[%emt 0:08:27]} 22. Rd3 {[%emt 0:01:28]} O-O {[%emt 0:01:24]} 23. Rd7 {[%emt 0:01:10]} Rfc8 {[%emt 0:05:01]} 24. Ne4 {[%emt 0:01:14]} h6 25. R1d3 {[%emt 0:02:35]} (25. Kf1 $15) 25... Na5 $17 {[%emt 0:05:05]} 26. a3 {[%emt 0:06:43]} (26. c5 $17) 26... Rxc4 {[%emt 0:07:38]} (26... Rxd7 $19 27. Rxd7 Rxc4 28. axb4 Rxe4) 27. axb4 $2 {[%emt 0:02:37] Loses the game.} (27. f3 $17 {was the only defense.} Bc5+ 28. Kf1) 27... Rxe4 $19 {[%emt 0:00:05][%cal Re4e1,Bc4e4,Be4b4,Bb4b1][%mdl 32] [#]} 28. f3 $2 {[%emt 0:01:45]} (28. Rd1) 28... Rxb4 {[%emt 0:00:08]} ({And not} 28... Rxf4 29. bxa5 Rf5 30. Rxb7 $17) 29. Bd2 {[%emt 0:01:11]} Rb1+ {[%emt 0:00:13]} 30. Kf2 {[%emt 0:00:11]} Nc4 {[%emt 0:00:55]} 31. Bc3 {[%emt 0:00:48]} Rb3 {[%emt 0:04:55]} 32. Kg3 {[%emt 0:00:50]} (32. Ke2 {is a better defense.}) 32... a5 {[%emt 0:00:56][%cal Ba6a5,Ba5a4][%mdl 32] Black is clearly winning.} 33. Ba1 {[%emt 0:02:00]} Rxd3 {[%emt 0:00:26]} 34. Rxd3 {[%emt 0:00:05]} b5 {[%emt 0:00:04][%cal Bb7b5,Bb5b4][%mdl 32] Strongly threatening ...a4.} 35. f4 {[%emt 0:00:21]} b4 {[%emt 0:00:12]} 36. f5 {[%emt 0:00:20]} a4 {[%emt 0:00:58] Weighted Error Value: White=0.44/Black=0.19 (very precise)} 0-1

[Event "87th Spanish Championship 2022"]
[Site "Linares"]
[Date "2022.08.12"]
[Round "2.27"]
[White "Narciso Dublan, Marc"]
[Black "Sanleon Pravisano, Nieves"]
[Result "1-0"]
[ECO "D00"]
[WhiteElo "2461"]
[BlackElo "1986"]
[Annotator "TA"]
[PlyCount "37"]
[EventDate "2022.08.11"]
[EventType "swiss"]
[EventCountry "ESP"]
[SourceTitle "playchess.com"]
[Source "ChessBase"]
[SourceQuality "1"]
[TimeControl "5400+30"]

{[%evp 9,37,9,16,14,16,18,30,25,45,44,44,43,47,43,47,44,66,66,64,64,64,57,62,65,100,116,880,878,1433,1420]} 1. d4 {[%emt 0:00:06]} d5 2. Bf4 {[%emt 0:00:14]} Nf6 {[%emt 0:00:20]} 3. e3 {[%emt 0:00:14]} e6 {[%emt 0:00:07]} 4. Nd2 {[%emt 0:00:59]} Bd6 {[%emt 0:00:54]} 5. Ngf3 {[%emt 0:04:34]} c5 6. dxc5 {D02: 1 d4 d5 2 Nf3 sidelines, including 2...Nf6 3 g3 and 2...Nf6 3 Bf4.} Bxf4 {[%emt 0:09:38]} 7. exf4 {[%emt 0:00:39]} Qc7 {[%emt 0:00:13][%csl LRc5,LRf4]} 8. g3 {[%emt 0:00:38] White has an edge.} Qxc5 {[%emt 0:00:46]} 9. Bd3 {[%emt 0:00:45]} Nc6 {[%emt 0:07:38]} 10. c3 {[%emt 0:01:54]} Bd7 {[%emt 0:11:16]} 11. O-O {[%emt 0:05:20]} O-O {[%emt 0:01:35]} 12. Ne5 {[%emt 0:00:06] [#]} Nxe5 $146 {[%emt 0:19:12]} ({Predecessor:} 12... Qb6 13. Qc2 h6 14. Rad1 Rac8 15. Qb1 Rfd8 16. Ndf3 Be8 17. f5 Nxe5 18. Nxe5 Nd7 {0-1 (72) Mahalakshmi,M (2255)-Avalyan,A (2382) Moscow 2020}) 13. fxe5 {[%emt 0:11:09]} Ne8 {[%emt 0:07:50]} 14. Qe2 {[%emt 0:00:30]} Nc7 {[%emt 0:00:30]} 15. Nb3 {[%emt 0:01:07][%cal Bd2b3,Bb3d4,Bd4f5][%mdl 32]} Qe7 {[%emt 0:05:19]} 16. Nd4 $40 {[%mdl 128] White attacks.} f5 17. exf6 {[%emt 0:06:37] White is more active.} gxf6 {[%emt 0:02:12][%mdl 8192] [#]} (17... Rxf6 $16 18. f4 (18. Qh5 Rh6 $16) 18... Raf8) 18. Nf5 $1 $18 {[%emt 0:00:41]} Qe8 {[%emt 0:00:38]} 19. Qg4+ {[%emt 0:00:10] Weighted Error Value: White=0.01 (flawless) /Black=0.13 (very precise)} 1-0